bitfinex-derivatives/quotes_SOLF0:USTF0_20250524
["timestamp","ask_amount","ask_price","bid_price","bid_amount"]
[1748045019627,2.65781692,174.01,173.92,125.03713683]
[1748045019831,2.65759714,174.0,173.92,125.03713683]
[1748045020018,143.0,174.02,173.92,125.03713683]
[1748045020320,0.0435575,173.99,173.92,125.03713683]
[1748045020728,0.0435575,173.99,173.92,0.03713683]
[1748045023027,0.0435575,173.99,173.98,5.7467]
[1748045023225,142.98,174.07,173.97,0.03934233]
[1748045023425,2.66201144,174.06,173.96,142.98]
[1748045023629,2.66201144,174.05,174.03,5.745]
[1748045023830,6.99873493,174.1,173.96,267.98]
[1748045024126,2.66251892,174.09,174.01,0.03669271]
[1748045024317,0.04288945,174.05,174.01,0.03669271]
[1748045024518,0.04288945,174.05,174.02,5.745]
[1748045024823,0.04288945,174.05,174.01,0.03669271]
[1748045025226,0.04288945,174.05,174.02,5.7453]
[1748045026134,0.04288945,174.05,174.01,0.03669271]
[1748045026629,0.04288945,174.05,174.04,5.7447]
[1748045026835,142.98,174.11,174.02,1.9086]
[1748045027029,2.66314624,174.1,174.02,1.9086]
[1748045027233,142.94,174.15,174.02,1.9086]
[1748045027528,2.6634612,174.14,174.02,126.9086]
[1748045027720,2.6634612,174.13,174.06,0.03925287]
[1748045028029,0.03640667,174.1,174.06,0.03925287]
[1748045028336,0.03640667,174.1,173.97,2.0228]
[1748045028337,2.66260337,174.09,173.97,2.0228]
[1748045028638,2.66260337,174.08,173.97,2.0228]
[1748045028831,2.66260337,174.07,173.97,2.0228]
[1748045029137,142.94,174.1,173.97,127.0228]
[1748045029344,0.04349935,174.05,174.02,0.03745438]
[1748045029920,0.04349935,174.05,174.04,5.7447]
[1748045030137,0.04349935,174.05,174.02,0.03745438]
[1748045031032,0.04349935,174.05,174.03,5.7449]
[1748045031331,0.04349935,174.05,174.02,0.03745438]
[1748045032127,9.935e-05,174.05,174.04,5.7447]
[1748045036439,9.935e-05,174.05,174.04,11.4847]
[1748045036640,9.935e-05,174.05,174.04,5.7447]
[1748045037539,9.935e-05,174.05,174.02,0.03745438]
[1748045037736,5.745,174.03,174.02,0.03745438]
[1748045039539,5.745,174.03,173.87,142.9]
[1748045039540,8.39521065,174.03,173.87,142.9]
[1748045039741,4.56271065,174.02,173.87,142.9]
[1748045039941,2.65521065,174.01,173.9,5.7492]
[1748045040244,145.55521065,174.0,173.87,142.9]
[1748045040437,0.04038846,173.95,173.92,0.04123816]
[1748045041035,142.9,173.94,173.85,5.34126912]
[1748045041240,2.65149014,173.93,173.85,5.34126912]
[1748045041543,2.65149014,173.92,173.81,5.9955]
[1748045041736,496.54,173.98,173.81,5.9955]
[1748045041939,145.57121087,173.97,173.81,5.9955]
[1748045042132,0.04151344,173.91,173.87,0.04260054]
[1748045043445,0.04151344,173.91,173.9,5.7493]
[1748045044245,0.04151344,173.91,173.87,0.04260054]
[1748045044846,2.65179633,173.9,173.87,0.04260054]
[1748045045047,2.65179633,173.89,173.87,0.04260054]
[1748045045251,2.65179633,173.88,173.87,0.04260054]
[1748045045450,8.40179633,173.88,173.87,0.04260054]
[1748045045746,8.40179633,173.88,173.84,5.7512]
[1748045045747,2.65179633,173.88,173.77,1.9667]
[1748045045946,5.7507,173.86,173.81,5.752]
[1748045046246,142.94,173.87,173.77,1.9667]
[1748045046745,0.03673856,173.84,173.8,0.03719924]
[1748045047246,0.03673856,173.84,173.83,5.7516]
[1748045048150,142.94,173.91,173.81,142.7]
[1748045048453,142.94,173.91,173.82,1.8577]
[1748045048644,5.7497,173.89,173.82,1.8577]
[1748045049255,0.03781404,173.87,173.84,0.03804624]
[1748045049752,0.03781404,173.87,173.84,5.78904624]
[1748045050050,0.03781404,173.87,173.84,0.03804624]
[1748045050446,5.78841404,173.87,173.84,0.03804624]
[1748045050948,5.7509,173.86,173.84,0.03804624]
[1748045051149,0.03781404,173.87,173.84,0.03804624]
[1748045052951,5.7509,173.85,173.84,0.03804624]
[1748045053155,0.03781404,173.87,173.84,0.03804624]
[1748045056455,5.78831404,173.87,173.84,0.03804624]
[1748045056849,0.03781404,173.87,173.84,0.03804624]
[1748045057154,5.751,173.85,173.84,0.03804624]
[1748045057956,5.7524,173.81,173.75,142.74]
[1748045058456,5.7526,173.8,173.77,5.7535]
[1748045058658,5.7526,173.8,173.75,142.74]
[1748045058951,0.03800396,173.79,173.76,0.03910758]
[1748045059154,0.04277934,173.79,173.76,0.03910758]
[1748045059752,5.7533,173.78,173.76,0.03910758]
[1748045061758,5.79577934,173.79,173.76,0.03910758]
[1748045061959,0.04277934,173.79,173.76,0.03910758]
[1748045062259,0.04277934,173.79,173.77,5.7533]
[1748045062659,0.04277934,173.79,173.76,0.03910758]
[1748045062857,5.7533,173.78,173.76,0.03910758]
[1748045063056,0.04277934,173.79,173.76,0.03910758]
[1748045063257,0.04277934,173.79,173.59,5.34126912]
[1748045063258,5.80277934,173.79,173.59,5.34126912]
[1748045063561,2.024,173.78,173.59,5.34126912]
[1748045063759,3.8844,173.77,173.59,5.34126912]
[1748045063956,5.7582,173.64,173.59,11.10086912]
[1748045064157,0.04302683,173.63,173.6,0.03963507]
[1748045064357,0.0415775,173.63,173.6,0.03940624]
[1748045064961,0.0415775,173.63,173.59,5.34126912]
[1748045065363,142.8215775,173.63,173.59,5.34126912]
[1748045065958,142.8215775,173.63,173.59,5.38087458]
[1748045066264,148.5798775,173.63,173.59,5.38087458]
[1748045066766,142.8215775,173.63,173.59,11.14027458]
[1748045066966,142.8215775,173.63,173.59,5.38087458]
[1748045067370,0.0415775,173.63,173.59,5.38087458]
[1748045068471,0.0415775,173.63,173.59,0.03960546]
[1748045068677,5.7998775,173.63,173.59,5.79910546]
[1748045068977,0.0415775,173.63,173.59,0.03960546]
[1748045070773,5.7592,173.6,173.59,0.03960546]
[1748045070980,0.0415775,173.63,173.59,0.03960546]
[1748045071775,0.0415775,173.63,173.62,5.7586]
[1748045071982,0.0415775,173.63,173.59,0.03960546]
[1748045074180,5.7592,173.6,173.59,0.03960546]
[1748045074377,142.9,173.61,173.51,5.8813]
[1748045074785,5.7609,173.55,173.51,5.8813]
[1748045075387,0.03961499,173.55,173.51,5.8813]
[1748045075887,0.03961499,173.55,173.51,11.6435]
[1748045076086,5.80061499,173.55,173.51,11.6435]
[1748045076585,0.03961499,173.55,173.51,11.6435]
[1748045076788,0.03961499,173.55,173.51,5.8813]
[1748045076986,0.03961499,173.55,173.5,129.5438]
[1748045077685,5.7613,173.54,173.5,129.5438]
[1748045077883,0.03961499,173.55,173.5,123.7813]
[1748045078186,142.9,173.61,173.5,123.7813]
[1748045078983,0.03917839,173.57,173.54,0.03855887]
[1748045079580,5.7609,173.55,173.54,0.03855887]
[1748045080591,5.79957839,173.57,173.54,0.03855887]
[1748045080781,0.03917839,173.57,173.54,0.03855887]
[1748045082982,5.79967839,173.57,173.54,0.03855887]
[1748045083184,0.03917839,173.57,173.54,0.03855887]
[1748045083585,5.7606,173.56,173.54,0.03855887]
[1748045084289,5.7609,173.55,173.54,0.03855887]
[1748045085587,5.7606,173.56,173.54,0.03855887]
[1748045086102,0.03917839,173.57,173.54,0.03855887]
[1748045087599,5.79967839,173.57,173.54,0.03855887]
[1748045088002,0.03917839,173.57,173.54,0.03855887]
[1748045089004,5.79947839,173.57,173.54,5.79975887]
[1748045089202,0.03917839,173.57,173.54,0.03855887]
[1748045089596,0.03917839,173.57,173.55,5.7608]
[1748045089903,0.03917839,173.57,173.54,0.03855887]
[1748045090202,5.7609,173.55,173.54,0.03855887]
[1748045090404,0.03917839,173.57,173.54,0.03855887]
[1748045090594,5.7606,173.56,173.54,0.03855887]
[1748045090795,0.03917839,173.57,173.54,0.03855887]
[1748045093105,5.79947839,173.57,173.54,0.03855887]
[1748045093606,0.03917839,173.57,173.54,0.03855887]
[1748045093802,5.7606,173.56,173.54,0.03855887]
[1748045094501,0.03917839,173.57,173.54,0.03855887]
[1748045095105,5.7609,173.55,173.54,0.03855887]
[1748045101316,5.7606,173.56,173.54,0.03855887]
[1748045101808,0.03917839,173.57,173.54,0.03855887]
[1748045102909,5.79967839,173.57,173.54,0.03855887]
[1748045103114,0.03917839,173.57,173.54,0.03855887]
[1748045103507,0.03917839,173.57,173.54,5.79955887]
[1748045104414,0.03917839,173.57,173.54,0.03855887]
[1748045105218,5.7612,173.55,173.48,136.12143453]
[1748045105413,142.9,173.61,173.48,136.12143453]
[1748045105713,5.7607,173.56,173.52,5.7616]
[1748045105908,142.9,173.61,173.48,136.12143453]
[1748045106109,0.03980692,173.56,173.47,42.2547]
[1748045106310,142.67980692,173.56,173.48,5.7629]
[1748045106816,142.67980692,173.56,173.47,7.6681]
[1748045106817,5.7622,173.51,173.47,7.6681]
[1748045107012,0.03929229,173.51,173.47,1.9047]
[1748045107213,0.03929229,173.51,173.46,43.023]
[1748045107509,0.03929229,173.51,173.46,39.22]
[1748045107912,0.03929229,173.51,173.5,5.7625]
[1748045108113,0.03929229,173.51,173.46,39.22]
[1748045109817,5.7629,173.49,173.46,39.22]
[1748045110019,0.03929229,173.51,173.46,39.22]
[1748045110221,142.23929229,173.51,173.46,39.22]
[1748045110413,5.7633,173.48,173.46,39.22]
[1748045110915,142.23929229,173.51,173.46,39.22]
[1748045111212,5.7631,173.49,173.46,39.22]
[1748045111412,142.23929229,173.51,173.46,39.22]
[1748045111720,5.7628,173.5,173.46,44.9837]
[1748045112015,142.23929229,173.51,173.46,44.9837]
[1748045112212,142.23929229,173.51,173.49,5.7629]
[1748045112413,142.23929229,173.51,173.46,39.22]
[1748045112921,148.00149229,173.51,173.47,5.7633]
[1748045113108,142.23929229,173.51,173.46,39.22]
[1748045113519,5.763,173.49,173.46,39.22]
[1748045113823,142.23929229,173.51,173.46,39.22]
[1748045114117,5.7635,173.47,173.46,39.22]
[1748045114323,142.23929229,173.51,173.46,39.22]
[1748045114728,5.7632,173.48,173.46,39.22]
[1748045115724,5.7635,173.47,173.46,39.22]
[1748045116426,5.7635,173.47,173.46,14.39007918]
[1748045116625,5.7648,173.43,173.42,14.41]
[1748045117134,142.27757336,173.44,173.38,6.46]
[1748045117625,5.7661,173.4,173.38,6.46]
[1748045117816,142.27757336,173.44,173.38,6.46]
[1748045118823,5.7661,173.4,173.38,6.46]
[1748045119027,142.27757336,173.44,173.38,6.46]
[1748045120925,5.7658,173.41,173.38,6.46]
[1748045121119,142.27757336,173.44,173.38,6.46]
[1748045121621,5.7662,173.39,173.38,6.46]
[1748045121816,148.0462,173.39,173.38,6.46]
[1748045122016,148.0462,173.39,173.38,6.1049]
[1748045122218,5.7665,173.38,173.37,32.6]
[1748045122717,148.0462,173.39,173.37,32.6]
[1748045122917,142.28,173.39,173.37,32.6]
[1748045123318,5.7665,173.38,173.37,32.6]
[1748045123523,5.7665,173.38,173.37,19.6724]
[1748045123722,142.28,173.39,173.36,12.52511526]
[1748045123920,5.7668,173.37,173.36,12.52511526]
[1748045124222,142.3,173.39,173.36,12.52511526]
[1748045124429,0.03959971,173.4,173.36,12.52511526]
[1748045124927,0.03959971,173.4,173.37,5.7665]
[1748045125118,0.03959971,173.4,173.36,12.52511526]
[1748045126026,0.03959971,173.4,173.36,18.29221526]
[1748045126221,0.03959971,173.4,173.36,12.52511526]
[1748045126629,5.80549971,173.4,173.36,18.29211526]
[1748045126826,0.03959971,173.4,173.36,18.29211526]
[1748045127428,0.03959971,173.4,173.36,12.52511526]
[1748045127625,142.3,173.47,173.36,12.52511526]
[1748045127817,148.0636,173.47,173.43,5.7645]
[1748045128024,142.3,173.51,173.37,251.88]
[1748045128328,5.7641,173.46,173.37,251.88]
[1748045128526,0.03961859,173.43,173.4,0.03871779]
[1748045129018,0.03961859,173.43,173.41,5.7653]
[1748045129220,0.03961859,173.43,173.4,0.03871779]
[1748045130827,0.03961859,173.43,173.41,5.7655]
[1748045131025,0.03961859,173.43,173.41,4.0326]
[1748045131227,142.32,173.5,173.41,4.0326]
[1748045131727,142.32,173.54,173.41,4.0326]
[1748045131926,142.32,173.54,173.42,40.36]
[1748045132133,0.04250341,173.5,173.46,0.03763066]
[1748045132328,5.7621,173.52,173.47,5.7634]
[1748045132522,142.32,173.54,173.46,0.03763066]
[1748045133232,5.7624,173.51,173.47,5.7635]
[1748045133425,142.32,173.54,173.46,0.03763066]
[1748045133622,0.04277965,173.52,173.46,0.03763066]
[1748045133927,3.91523493,173.57,173.45,142.3]
[1748045134226,142.3,173.63,173.45,142.3]
[1748045134428,6.97345143,173.67,173.45,142.3]
[1748045134429,142.3,173.64,173.45,142.3]
[1748045134832,142.3,173.64,173.53,0.04317316]
[1748045134833,5.8036088,173.56,173.53,0.04317316]
[1748045135124,0.04326719,173.56,173.53,0.0399254]
[1748045135727,6.97345143,173.67,173.53,0.0399254]
[1748045135935,149.25345143,173.67,173.52,109.56]
[1748045136230,149.25345143,173.67,173.57,5.7599]
[1748045136433,149.25345143,173.67,173.56,142.28]
[1748045136634,6.97345143,173.67,173.56,142.28]
[1748045136833,0.04409287,173.63,173.6,0.03633577]
[1748045137132,0.04409287,173.63,173.48,142.28]
[1748045137133,0.04409375,173.63,173.48,142.28]
[1748045137333,142.28,173.66,173.48,142.28]
[1748045138231,0.0419167,173.59,173.55,0.0386741]
[1748045138432,0.0419167,173.59,173.55,0.03787916]
[1748045138633,0.0419167,173.59,173.57,5.76]
[1748045138937,0.0419167,173.59,173.55,0.03787916]
[1748045139234,0.0419167,173.59,173.55,1.99517916]
[1748045139739,4.8014,173.7,173.55,1.99517916]
[1748045139928,141.8,173.69,173.56,2.0325]
[1748045140130,5.7569,173.67,173.62,5.7582]
[1748045140631,141.8,173.72,173.61,147.5588]
[1748045140833,0.03881354,173.68,173.65,0.03886511]
[1748045141133,5.7572,173.66,173.65,0.03886511]
[1748045142030,5.7602,173.57,173.56,2.0325]
[1748045142237,143.7129,173.67,173.55,1.9573]
[1748045142433,143.7129,173.67,173.51,141.78]
[1748045142633,5.761,173.55,173.51,141.78]
[1748045142841,141.78,173.62,173.51,141.78]
[1748045143138,1.9329,173.67,173.48,3.9162]
[1748045143139,0.03776638,173.58,173.55,0.04341353]
[1748045143442,0.04083441,173.58,173.47,12.7]
[1748045143641,5.7632,173.48,173.47,12.7]
[1748045144435,5.7632,173.48,173.47,5.6147]
[1748045144732,5.7632,173.48,173.47,5.4455]
[1748045145140,5.7632,173.48,173.47,0.0001]
[1748045148151,5.7635,173.47,173.46,7.524e-05]
[1748045149246,141.84427621,173.49,173.46,7.524e-05]
[1748045150130,0.04427621,173.49,173.46,7.524e-05]
[1748045150746,5.80737621,173.49,173.46,7.524e-05]
[1748045151448,0.04427621,173.49,173.46,7.524e-05]
[1748045152144,141.84,173.54,173.46,7.524e-05]
[1748045152341,508.44304155,173.61,173.46,7.524e-05]
[1748045152342,141.84,173.59,173.46,7.524e-05]
[1748045152536,5.7601,173.58,173.53,5.7613]
[1748045153040,5.761,173.55,173.54,0.03730341]
[1748045154249,5.761,173.55,173.54,3.41e-06]
[1748045155138,147.601,173.55,173.54,3.41e-06]
[1748045155538,5.761,173.55,173.54,3.41e-06]
[1748045162251,141.84,173.55,173.54,3.41e-06]
[1748045162455,147.6006,173.56,173.54,3.41e-06]
[1748045162649,141.84,173.56,173.54,3.41e-06]
[1748045163247,5.7609,173.55,173.54,3.41e-06]
[1748045163648,141.84,173.56,173.54,3.41e-06]
[1748045164554,5.7609,173.55,173.54,3.41e-06]
[1748045164764,0.04101685,173.57,173.54,3.41e-06]
[1748045165255,46.0247,173.79,173.54,3.41e-06]
[1748045165256,141.82,173.64,173.54,3.41e-06]
[1748045165457,141.82,173.64,173.54,3.9139]
[1748045165754,152.18304155,173.68,173.54,3.9139]
[1748045166451,0.03835886,173.63,173.59,0.03673224]
[1748045166658,141.82,173.7,173.6,141.82]
[1748045167553,141.82,173.7,173.63,0.04352405]
[1748045167853,0.0379164,173.67,173.63,0.04352405]
[1748045168057,6.95464467,173.71,173.63,0.04352405]
[1748045169054,0.04424196,173.69,173.63,0.04352405]
[1748045170460,141.78,173.74,173.63,0.04352405]
[1748045170661,141.78,173.74,173.6,141.82]
[1748045170863,5.7558,173.71,173.66,5.7569]
[1748045171167,5.7558,173.71,173.6,141.82]
[1748045171357,5.7564,173.69,173.65,5.7575]
[1748045171553,0.03944493,173.69,173.65,0.03766052]
[1748045171858,0.03944493,173.69,173.68,5.7565]
[1748045172352,0.03944493,173.69,173.66,2.0261]
[1748045172554,5.7566,173.68,173.66,2.0261]
[1748045172864,0.03944493,173.69,173.66,2.0261]
[1748045173161,0.03944493,173.69,173.68,5.7565]
[1748045173864,141.78,173.74,173.7,5.7557]
[1748045174061,141.3,173.77,173.66,3.8768]
[1748045174366,5.7544,173.75,173.66,3.8768]
[1748045174659,5.7544,173.75,173.7,5.7556]
[1748045174851,5.754,173.76,173.66,3.8768]
[1748045175056,0.04416985,173.74,173.71,0.03758488]
[1748045175263,0.04416985,173.74,173.72,5.755]
[1748045175461,141.3,173.79,173.71,0.03758488]
[1748045175854,5.7536,173.77,173.71,0.03758488]
[1748045176156,5.7536,173.77,173.7,141.3]
[1748045176365,6.95464467,173.84,173.66,3.8768]
[1748045176559,0.03717883,173.77,173.73,0.04417362]
[1748045176754,141.28,173.76,173.73,0.040321]
[1748045176954,5.7546,173.74,173.73,0.040321]
[1748045180166,11.5146,173.74,173.73,2.1e-05]
[1748045180569,5.7546,173.74,173.73,2.1e-05]
[1748045181160,11.5146,173.74,173.73,2.1e-05]
[1748045181462,503.3,173.74,173.6,1.8656]
[1748045181663,0.2087,173.73,173.6,1.8656]
[1748045182067,0.2087,173.73,173.6,7.6247]
[1748045182370,5.7572,173.66,173.65,0.03735374]
[1748045183764,0.03972015,173.68,173.65,0.03735374]
[1748045183972,141.28,173.78,173.65,5.79735374]
[1748045184267,147.0336,173.78,173.62,266.28]
[1748045184469,141.28,173.78,173.62,266.28]
[1748045184676,5.7538,173.77,173.62,266.28]
[1748045184868,0.03941332,173.71,173.68,0.03872947]
[1748045185070,141.28,173.78,173.69,141.28]
[1748045185272,5.7536,173.77,173.7,2.0021]
[1748045185873,5.7536,173.77,173.73,5.7546]
[1748045186170,5.79784757,173.77,173.73,0.03986636]
[1748045186471,5.79784757,173.77,173.73,5.79466636]
[1748045186771,0.04424757,173.77,173.73,0.03986636]
[1748045187369,638.84,173.82,173.73,0.03986636]
[1748045187566,141.26,173.82,173.78,5.7529]
[1748045187872,141.26,173.82,173.74,141.26]
[1748045188175,147.0106,173.86,173.74,141.26]
[1748045188365,0.04060909,173.82,173.78,0.03663981]
[1748045189373,141.24,173.88,173.78,0.03663981]
[1748045189674,148.19464467,174.01,173.79,250.62]
[1748045190272,0.03738624,173.92,173.88,0.03900651]
[1748045190478,5.7469,173.98,173.88,109.41759866]
[1748045190770,153.94054467,174.01,173.88,109.41759866]
[1748045190971,148.19464467,174.01,173.88,109.38]
[1748045191160,148.19464467,174.01,173.78,497.42]
[1748045191365,148.19464467,174.01,173.79,250.62]
[1748045191566,0.03879688,173.92,173.88,0.04247242]
[1748045191766,148.19464467,174.01,173.88,0.04393375]
[1748045191968,5.7463,173.99,173.93,5.748]
[1748045192177,148.19464467,174.01,173.89,109.34]
[1748045192569,148.19464467,174.01,173.9,1.9622]
[1748045192872,5.7463,173.99,173.94,5.78757628]
[1748045193074,148.19464467,174.01,173.94,0.03967628]
[1748045193578,148.19464467,174.01,173.96,5.7473]
[1748045193774,148.19464467,174.01,173.94,0.03967628]
[1748045194169,6.95464467,174.01,173.94,0.03967628]
[1748045194373,141.18,174.05,173.94,0.03967628]
[1748045194676,5.745,174.03,173.98,0.03783011]
[1748045195270,141.18,174.05,173.98,0.03783011]
[1748045195682,5.7461,174.0,173.98,0.03783011]
[1748045196178,141.18,174.05,173.98,0.03783011]
[1748045196372,0.1645,174.11,173.98,0.03783011]
[1748045196573,141.12,174.07,173.98,0.03783011]
[1748045197373,141.12,174.2,173.98,0.03783011]
[1748045197580,141.08,174.19,174.08,5.743]
[1748045197876,141.08,174.19,174.12,0.03725336]
[1748045198081,141.08,174.19,174.14,0.03875494]
[1748045198278,141.08,174.19,174.15,0.03894634]
[1748045198470,141.08,174.19,174.15,0.03800797]
[1748045198776,5.7407,174.16,174.15,0.03800797]
[1748045200179,141.08,174.19,174.15,0.03800797]
[1748045200573,5.7403,174.18,174.15,0.03800797]
[1748045200881,141.08,174.19,174.15,0.03800797]
[1748045201274,5.7407,174.16,174.15,0.03800797]
[1748045201666,141.08,174.19,174.15,0.03800797]
[1748045201874,5.7403,174.18,174.15,0.03800797]
[1748045202175,141.08,174.19,174.15,0.03800797]
[1748045202375,146.82,174.19,174.15,0.03800797]
[1748045202576,141.08,174.19,174.15,0.03800797]
[1748045203081,5.7403,174.18,174.15,0.03800797]
[1748045203681,140.54,174.23,174.15,0.03800797]
[1748045203876,140.54,174.23,174.11,2.84]
[1748045203877,5.7388,174.22,174.17,0.04230689]
[1748045204579,140.54,174.23,174.17,0.04230689]
[1748045205374,5.7388,174.22,174.17,5.78260689]
[1748045205579,5.7388,174.22,174.17,0.04230689]
[1748045205781,140.54,174.23,174.17,0.04230689]
[1748045206380,140.54,174.23,174.11,2.84]
[1748045207382,5.7407,174.16,174.15,0.03643239]
[1748045207582,146.1807,174.16,174.15,0.03643239]
[1748045208287,5.742,174.12,174.11,2.84]
[1748045208582,140.44,174.16,174.11,2.84]
[1748045209280,140.44,174.16,174.12,0.03789517]
[1748045209486,5.7413,174.14,174.12,0.03789517]
[1748045209783,0.0410927,174.15,174.12,0.03789517]
[1748045210684,140.44,174.24,174.12,5.77789517]
[1748045210883,140.44,174.24,174.11,143.28]
[1748045211184,140.44,174.28,174.11,143.28]
[1748045211584,5.7371,174.27,174.23,5.7383]
[1748045211776,5.7371,174.27,174.23,5.7819713]
[1748045211979,5.77474658,174.27,174.23,5.7819713]
[1748045212287,0.03764658,174.27,174.23,0.0436713]
[1748045212884,5.7375,174.26,174.23,0.0436713]
[1748045213088,0.03764658,174.27,174.23,0.0436713]
[1748045213281,5.738,174.24,174.23,0.0436713]
[1748045213582,0.03764658,174.27,174.23,0.0436713]
[1748045214084,5.7377,174.26,174.23,0.0436713]
[1748045214385,0.03764658,174.27,174.23,0.0436713]
[1748045215587,0.03764658,174.27,174.24,5.7377]
[1748045215899,0.03764658,174.27,174.23,0.0436713]
[1748045216187,0.03764658,174.27,174.23,5.7817713]
[1748045216584,0.03764658,174.27,174.24,5.7379]
[1748045217184,0.03764658,174.27,174.23,0.0436713]
[1748045217185,0.03764658,174.27,174.23,5.7819713]
[1748045217489,0.03764658,174.27,174.23,0.0436713]
[1748045219098,5.738,174.24,174.23,0.0436713]
[1748045220984,0.23314658,174.27,174.13,140.34]
[1748045221189,140.34,174.26,174.09,249.44]
[1748045221796,140.34,174.26,174.11,39.76]
[1748045221985,5.7396,174.2,174.17,0.03984792]
[1748045222196,140.38142246,174.21,174.17,0.03984792]
[1748045222489,5.74,174.18,174.17,0.03984792]
[1748045222692,140.38142246,174.21,174.11,39.76]
[1748045222890,140.34,174.21,174.11,39.76]
[1748045223694,0.04408175,174.18,174.15,0.03896001]
[1748045224096,5.7407,174.16,174.15,0.03896001]
[1748045224793,140.36,174.16,174.11,39.76]
[1748045225396,5.741,174.15,174.11,39.76]
[1748045225592,140.36,174.16,174.11,39.76]
[1748045225793,140.36,174.16,174.12,0.04263728]
[1748045226091,0.04296758,174.16,174.12,0.04263728]
[1748045226300,140.36,174.2,174.12,0.04263728]
[1748045227285,0.04348064,174.18,174.12,0.04263728]
[1748045228898,5.78358064,174.18,174.13,5.7416]
[1748045229308,5.78358064,174.18,174.12,0.04263728]
[1748045229900,0.04348064,174.18,174.12,0.04263728]
[1748045232803,0.04348064,174.18,174.14,5.7411]
[1748045233003,0.04348064,174.18,174.12,0.04263728]
[1748045233500,0.04348064,174.18,174.17,5.7404]
[1748045235589,641.6781,174.24,174.17,5.7404]
[1748045235791,641.6781,174.24,174.21,5.7389]
[1748045235792,145.5981,174.24,174.21,5.7389]
[1748045235992,139.86,174.24,174.21,5.7389]
[1748045236197,5.7373,174.27,174.23,5.7384]
[1748045236397,5.7373,174.27,174.16,139.86]
[1748045236705,0.03959948,174.23,174.2,0.0388785]
[1748045237298,139.84,174.35,174.21,248.94]
[1748045237504,139.84,174.35,174.22,1.9024]
[1748045237804,5.7355,174.32,174.28,5.7367]
[1748045238003,139.84,174.35,174.23,2.0087]
[1748045238204,0.03407811,174.31,174.29,5.7363]
[1748045238402,139.84,174.39,174.27,0.04391943]
[1748045238591,139.84,174.39,174.26,139.84]
[1748045239408,5.7337,174.38,174.31,0.0420695]
[1748045239905,5.7337,174.38,174.33,5.7348]
[1748045240103,139.84,174.39,174.31,0.0420695]
[1748045242012,145.5734,174.39,174.33,5.735]
[1748045242304,139.84,174.39,174.33,5.735]
[1748045242805,139.84,174.39,174.31,0.0420695]
[1748045242806,5.7339,174.37,174.32,5.7354]
[1748045243002,5.7339,174.37,174.31,0.0420695]
[1748045243210,139.84,174.39,174.31,0.0420695]
[1748045243409,139.84,174.39,174.34,5.7347]
[1748045243704,139.78,174.43,174.35,0.04332785]
[1748045246209,5.7326,174.41,174.35,0.04332785]
[1748045246705,5.7332,174.39,174.35,0.04332785]
[1748045246902,139.76,174.38,174.35,0.04332785]
[1748045247101,139.76,174.37,174.35,0.04271587]
[1748045247301,139.76,174.37,174.34,0.03662878]
[1748045247503,5.7347,174.35,174.34,0.03662878]
[1748045247703,0.02597521,174.36,174.3,40.16]
[1748045248504,5.7358,174.31,174.3,40.16]
[1748045251014,5.7361,174.3,174.29,6.145e-05]
[1748045252112,0.03580399,174.32,174.29,6.145e-05]
[1748045252413,0.03580399,174.32,174.31,5.7358]
[1748045252908,139.76,174.39,174.3,139.76]
[1748045253114,139.76,174.39,174.26,139.76]
[1748045253717,0.03987811,174.34,174.31,0.04122883]
[1748045253908,6.83408256,174.44,174.31,139.80122883]
[1748045254217,152.32588256,174.44,174.31,248.78]
[1748045254411,139.76,174.44,174.37,5.7337]
[1748045254610,139.76,174.44,174.32,1.22]
[1748045254915,6.83408256,174.54,174.36,0.04318528]
[1748045254916,139.74,174.49,174.36,0.04318528]
[1748045255117,139.74,174.5,174.41,0.04246911]
[1748045255317,5.7299,174.49,174.41,0.04246911]
[1748045255615,139.74,174.5,174.41,0.04246911]
[1748045256114,5.7302,174.48,174.41,0.04246911]
[1748045256307,5.7302,174.48,174.42,5.7321]
[1748045256505,5.7306,174.47,174.41,0.04246911]